[Event "2nd Irena Warakomska Memorial-B"]
[Site "Suwalki"]
[Date "2018.08.02"]
[Round "2"]
[White "Reshetniak, Vitaly"]
[Black "Rudzinska, Michalina"]
[Result "0-1"]
[ECO "A61"]
[WhiteElo "2085"]
[BlackElo "2003"]
[Annotator "NA"]
[PlyCount "118"]
[EventDate "2018.08.01"]
[EventType "swiss"]
[EventCountry "POL"]
[SourceTitle "playchess.com"]
[Source "ChessBase"]
[SourceQuality "1"]
[TimeControl "40/5400+30:1800+30"]

1. d4 {[%emt 0:03:28]} Nf6 {[%emt 0:00:00]} 2. c4 {[%emt 0:00:11]} e6 {[%emt 0:00:00]} 3. Nc3 {[%emt 0:00:09]} c5 {[%emt 0:00:00]} 4. d5 {[%emt 0:00:08]} exd5 {[%emt 0:00:00]} 5. cxd5 {[%emt 0:00:08]} d6 {[%emt 0:00:07]} 6. Nf3 {[%emt 0:00:10]} g6 {[%emt 0:00:09]} 7. Bf4 {[%emt 0:00:08]} a6 {[%emt 0:00:19]} 8. a4 {[%emt 0:00:08]} Bg7 {[%emt 0:00:19]} 9. h3 {[%emt 0:00:20]} O-O {[%emt 0:00:23]} 10. e3 {[%emt 0:00:09]} Qe7 {[%emt 0:05:26]} 11. Nd2 {[%emt 0:00:14]} Nbd7 {[%emt 0:05:51]} 12. Be2 {[%emt 0:00:11]} Ne8 {[%emt 0:02:37]} 13. O-O {[%emt 0:01:13]} Ne5 {[%emt 0:01:33]} 14. Re1 {[%emt 0:01:25]} Rb8 {[%emt 0:01:28]} 15. Bh2 {[%emt 0:00:29]} f5 16. Ra3 {[%emt 0:23:03]} Nc7 {[%emt 0:15:56]} 17. a5 {[%emt 0:02:42]} Bd7 {[%emt 0:07:33]} 18. Rb3 {[%emt 0:01:19]} Kh8 {[%emt 0:11:49]} 19. Bc4 {[%emt 0:07:32]} g5 {[%emt 0:09:19]} 20. f4 {[%emt 0:00:27]} Nf7 {[%emt 0:07:20]} 21. e4 {[%emt 0:01:53]} gxf4 {[%emt 0:02:18]} 22. exf5 {[%emt 0:00:28]} Ne5 {[%emt 0:03:36]} 23. Bxf4 {[%emt 0:00:57]} Rxf5 {[%emt 0:04:21]} 24. Bxe5 {[%emt 0:01:10]} Rxe5 {[%emt 0:07:16]} 25. Nf3 {[%emt 0:00:18]} Rxe1+ {[%emt 0:00:51]} 26. Qxe1 {[%emt 0:00:14]} Qf7 {[%emt 0:04:50]} 27. Qg3 {[%emt 0:00:55]} Rg8 {[%emt 0:00:33]} 28. Qxd6 {[%emt 0:04:33]} Qxf3 {[%emt 0:00:44]} 29. gxf3 {[%emt 0:01:04]} Be5+ {[%emt 0:00:08]} 30. Kf2 {[%emt 0:00:16]} Bxd6 {[%emt 0:00:12]} 31. Ne4 {[%emt 0:00:04]} Be5 {[%emt 0:00:48]} 32. Rxb7 {[%emt 0:00:47]} Bb5 {[%emt 0:01:54]} 33. b3 {[%emt 0:00:18]} Bxc4 {[%emt 0:06:49]} 34. bxc4 {[%emt 0:00:02]} Rd8 {[%emt 0:01:11]} 35. Ke3 {[%emt 0:00:29]} Ne8 {[%emt 0:00:46]} 36. Rb6 {[%emt 0:01:32]} Nd6 {[%emt 0:00:30]} 37. Kd3 {[%emt 0:00:09]} Nxe4 {[%emt 0:00:54]} 38. Kxe4 {[%emt 0:00:11]} Re8 {[%emt 0:00:39]} 39. Rxa6 {[%emt 0:00:16]} Bd4+ {[%emt 0:00:16]} 40. Re6 {[%emt 0:00:00]} Ra8 {[%emt 0:00:00]} 41. a6 {[%emt 0:00:49]} Kg7 {[%emt 0:01:18]} 42. f4 {[%emt 0:01:17]} Kf7 {[%emt 0:01:54]} 43. f5 {[%emt 0:00:26]} h5 {[%emt 0:12:47]} 44. Kf4 {[%emt 0:01:35]} h4 {[%emt 0:02:25]} 45. Kg5 {[%emt 0:02:03]} Rg8+ {[%emt 0:00:36]} 46. Rg6 {[%emt 0:01:26]} Bf6+ {[%emt 0:00:11]} 47. Kf4 {[%emt 0:00:35]} Ra8 {[%emt 0:00:22]} 48. Rh6 Rxa6 {[%emt 0:02:23]} 49. Rh7+ {[%emt 0:00:31]} Bg7 {[%emt 0:00:42]} 50. Rxh4 {[%emt 0:01:04]} Ra3 51. Ke4 {[%emt 0:05:23]} Rc3 {[%emt 0:02:19]} 52. Rg4 {[%emt 0:00:15]} Rxc4+ {[%emt 0:00:53]} 53. Kd3 Rxg4 {[%emt 0:05:51]} 54. hxg4 {[%emt 0:00:07]} Kf6 {[%emt 0:00:10]} 55. d6 {[%emt 0:02:34]} Ke5 {[%emt 0:00:08]} 56. d7 {[%emt 0:00:27]} Bf6 {[%emt 0:00:08]} 57. Kc4 {[%emt 0:00:13]} Kd6 {[%emt 0:00:05]} 58. Kb5 {[%emt 0:00:16]} Bd8 {[%emt 0:01:27]} 59. Kc4 {[%emt 0:01:03]} Ke5 {Kd4+} 0-1

[Event "2nd Irena Warakomska Memorial-B"]
[Site "Suwalki"]
[Date "2018.08.02"]
[Round "2"]
[White "Sukhimski, Vladimir"]
[Black "Sapeta, Robert"]
[Result "1-0"]
[ECO "A04"]
[WhiteElo "2083"]
[BlackElo "1960"]
[Annotator "NA"]
[PlyCount "125"]
[EventDate "2018.08.01"]
[EventType "swiss"]
[EventCountry "POL"]
[SourceTitle "playchess.com"]
[Source "ChessBase"]
[SourceQuality "1"]
[TimeControl "40/5400+30:1800+30"]

1. Nf3 {[%emt 0:00:00]} d6 {[%emt 0:02:19]} 2. d3 {[%emt 0:00:52]} e5 {[%emt 0:01:04]} 3. c4 {[%emt 0:00:25]} f5 {[%emt 0:00:56]} 4. Nc3 {[%emt 0:00:15]} Nf6 {[%emt 0:00:24]} 5. g3 {[%emt 0:00:34]} g6 {[%emt 0:03:12]} 6. Bg2 {[%emt 0:01:40]} Bg7 {[%emt 0:01:04]} 7. O-O {[%emt 0:03:25]} O-O {[%emt 0:03:28]} 8. Bd2 {[%emt 0:01:48]} Qe7 {[%emt 0:17:36]} 9. b4 {[%emt 0:10:17]} c6 {[%emt 0:07:52]} 10. b5 {[%emt 0:03:14]} h6 {[%emt 0:05:15]} 11. bxc6 {[%emt 0:06:22]} bxc6 {[%emt 0:10:06]} 12. Rb1 {[%emt 0:01:05]} g5 {[%emt 0:04:17]} 13. Ne1 {[%emt 0:07:23]} e4 {[%emt 0:08:27]} 14. dxe4 {[%emt 0:04:15]} fxe4 {[%emt 0:01:25]} 15. Nc2 {[%emt 0:00:27]} Na6 {[%emt 0:16:58]} 16. Nd4 {[%emt 0:03:09]} c5 {[%emt 0:01:36]} 17. Ndb5 {[%emt 0:06:02]} Bf5 {[%emt 0:01:05]} 18. Be3 Rfd8 {[%emt 0:05:43]} 19. Nd5 {[%emt 0:04:30]} Qe5 20. Nxf6+ {[%emt 0:07:57]} Bxf6 {[%emt 0:00:40]} 21. Qa4 {[%emt 0:03:56]} Nb4 {[%emt 0:00:51]} 22. a3 {[%emt 0:02:54]} Na2 {[%emt 0:00:40]} 23. Qc2 {[%emt 0:05:02]} Nc3 {[%emt 0:00:29]} 24. Nxc3 {[%emt 0:00:14]} Qxc3 {[%emt 0:00:03]} 25. Qxc3 {[%emt 0:00:22]} Bxc3 {[%emt 0:00:05]} 26. Rb3 {[%emt 0:00:36]} Be5 {[%emt 0:00:35]} 27. f4 {[%emt 0:01:45]} gxf4 {[%emt 0:03:14]} 28. Bxf4 {[%emt 0:00:47]} Bd4+ {[%emt 0:02:29]} 29. e3 {[%emt 0:00:22]} Bg7 {[%emt 0:00:06]} 30. Bxd6 {[%emt 0:05:50]} Be6 {[%emt 0:01:09]} 31. Be7 {[%emt 0:12:17]} Bxc4 {[%emt 0:01:20]} 32. Bxd8 {[%emt 0:02:50]} Bxb3 {[%emt 0:00:06]} 33. Bf6 {[%emt 0:00:54]} Bxf6 {[%emt 0:01:00]} 34. Rxf6 {[%emt 0:00:14]} Rc8 {[%emt 0:00:44]} 35. Bxe4 {[%emt 0:01:10]} c4 {[%emt 0:00:24]} 36. Bd5+ {[%emt 0:00:46]} Kg7 {[%emt 0:00:13]} 37. Rf7+ {[%emt 0:00:46]} Kg6 {[%emt 0:00:12]} 38. Rxa7 {[%emt 0:00:21]} Kf5 {[%emt 0:01:18]} 39. Kf2 {[%emt 0:01:12]} Ke5 {[%emt 0:00:13]} 40. Ra5 {[%emt 0:00:00]} Kd6 {[%emt 0:00:00]} 41. Ke2 Ba2 {[%emt 0:17:11]} 42. Be4 {[%emt 0:08:44]} Rb8 {[%emt 0:08:02]} 43. Bc2 {[%emt 0:08:27]} Rb2 {[%emt 0:02:47]} 44. Kd1 {[%emt 0:00:13]} Bb3 {[%emt 0:00:30]} 45. Bxb3 {[%emt 0:00:41]} cxb3 {[%emt 0:00:23]} 46. Rb5 {[%emt 0:00:40]} Rxh2 {[%emt 0:01:35]} 47. Rxb3 {[%emt 0:00:12]} Kd5 {[%emt 0:00:57]} 48. Rb4 {[%emt 0:00:47]} Ra2 {[%emt 0:01:14]} 49. a4 {[%emt 0:00:22]} h5 {[%emt 0:01:14]} 50. Rd4+ {[%emt 0:00:20]} Ke6 {[%emt 0:00:48]} 51. Rh4 {[%emt 0:00:36]} Rg2 {[%emt 0:01:25]} 52. Rxh5 {[%emt 0:00:19]} Rxg3 {[%emt 0:00:06]} 53. Kd2 {[%emt 0:00:17]} Rg2+ {[%emt 0:00:16]} 54. Kd3 {[%emt 0:00:36]} Ra2 {[%emt 0:00:06]} 55. Ra5 {[%emt 0:00:45]} Kd6 {[%emt 0:00:40]} 56. Ke4 {[%emt 0:00:43]} Rh2 {[%emt 0:00:22]} 57. Rf5 {[%emt 0:02:38]} Rh4+ {[%emt 0:00:49]} 58. Rf4 {[%emt 0:00:14]} Rh8 {[%emt 0:00:12]} 59. a5 {[%emt 0:00:30]} Kc5 {[%emt 0:00:32]} 60. Rf5+ Kc4 {[%emt 0:01:04]} 61. a6 {[%emt 0:02:24]} Re8+ {[%emt 0:00:46]} 62. Kf4 {[%emt 0:00:55]} Ra8 {[%emt 0:00:50]} 63. Rf6 1-0

[Event "2nd Irena Warakomska Memorial-B"]
[Site "Suwalki"]
[Date "2018.08.02"]
[Round "2"]
[White "Widla, Piotr"]
[Black "Krasiewicz, Robert"]
[Result "1/2-1/2"]
[ECO "B24"]
[WhiteElo "2071"]
[BlackElo "1923"]
[Annotator "NA RC"]
[PlyCount "85"]
[EventDate "2018.08.01"]
[EventType "swiss"]
[EventCountry "POL"]
[SourceTitle "playchess.com"]
[Source "ChessBase"]
[SourceQuality "1"]
[TimeControl "40/5400+30:1800+30"]

1. e4 g6 2. Nc3 Bg7 3. d3 c5 4. g3 Nc6 5. Bg2 e6 6. Be3 Nd4 7. Qd2 Ne7 8. Nce2 Nxe2 9. Nxe2 Qc7 10. c3 d5 11. Bh6 O-O 12. h4 f6 13. Bxg7 Kxg7 14. h5 g5 15. h6+ Kh8 16. f4 dxe4 17. fxg5 exd3 18. Qxd3 fxg5 19. O-O-O e5 20. Qe3 g4 21. Be4 Nf5 22. Rhf1 Qe7 23. Bxf5 Bxf5 24. Nf4 Rae8 25. Nd5 Qd6 26. c4 Qa6 27. Nc3 Qc6 28. Rd5 Kg8 29. Nb5 Re6 30. Qg5+ Rg6 31. Qe7 Qf6 32. Qxf6 Rgxf6 33. Rxe5 Bd3 34. Rxf6 Rxf6 35. Rxc5 a6 36. Nd4 Rxh6 37. Kd2 Be4 38. Rc8+ Kf7 39. Ke3 Bh1 40. Kf4 Rh2 41. Kxg4 Rxb2 42. Kg5 Be4 43. Rc7+ $11 1/2-1/2

[Event "2nd Irena Warakomska Memorial-B"]
[Site "Suwalki"]
[Date "2018.08.02"]
[Round "2"]
[White "Grabowski, Adam"]
[Black "Furtak, Joanna"]
[Result "1-0"]
[ECO "D05"]
[WhiteElo "2066"]
[BlackElo "1899"]
[Annotator "NA RC"]
[PlyCount "147"]
[EventDate "2018.08.01"]
[EventType "swiss"]
[EventCountry "POL"]
[SourceTitle "playchess.com"]
[Source "ChessBase"]
[SourceQuality "1"]
[TimeControl "40/5400+30:1800+30"]

1. Nf3 d5 2. d4 Nf6 3. c3 e6 4. e3 Be7 5. Bd3 O-O 6. Nbd2 b6 7. O-O Bb7 8. Re1 Nbd7 9. Qe2 c5 10. Nf1 Qc7 11. Ng3 Rfe8 12. Bd2 Bf8 13. e4 dxe4 14. Nxe4 Nxe4 15. Bxe4 Bxe4 16. Qxe4 Nf6 17. Qh4 cxd4 18. Nxd4 Rad8 19. Bg5 Be7 20. Re3 Nd5 21. Rg3 Bxg5 22. Qxg5 f6 23. Qg4 Qf7 24. Re1 f5 25. Qg5 Rd7 26. Nc6 Qf6 27. Qxf6 Nxf6 28. Rge3 Rd2 29. R3e2 Rxe2 30. Rxe2 a5 31. f3 Kf7 32. Kf2 Nd5 33. g3 Kf6 34. c4 Ne7 35. Nxe7 Rxe7 36. Rd2 e5 37. Rd5 Re6 38. a3 g5 39. Ke3 e4 40. b4 axb4 41. axb4 exf3+ 42. Kxf3 Rc6 43. Rd4 Re6 44. b5 h6 45. Rd8 Ke7 46. Rd3 Rd6 47. Ra3 Re6 48. Ra6 Kd7 49. h4 gxh4 50. gxh4 Kc7 51. Ra7+ Kd6 52. h5 Ke5 53. Rc7 Rd6 54. c5 bxc5 55. Rxc5+ Ke6 56. Ke3 Kd7 57. Kf4 Rd1 58. Kxf5 Rg1 59. Kf6 Kd6 60. Rc6+ Kd7 61. Rc5 Kd6 62. Rc8 Kd7 63. Rh8 Rg5 64. b6 Rb5 65. Rh7+ Kc8 66. b7+ Kb8 67. Kg6 Rb6+ 68. Kg7 Kxb7 69. Rxh6 Rb5 70. Rh8 Kc7 71. h6 Kd7 72. h7 Rh5 73. Ra8 Rg5+ 74. Kf6 1-0

[Event "2nd Irena Warakomska Memorial-B"]
[Site "Suwalki"]
[Date "2018.08.02"]
[Round "2"]
[White "Barchuk, Irina"]
[Black "Sapinski, Sebastian"]
[Result "1-0"]
[ECO "C11"]
[WhiteElo "2061"]
[BlackElo "1505"]
[Annotator "NA RC"]
[PlyCount "99"]
[EventDate "2018.08.01"]
[EventType "swiss"]
[EventCountry "POL"]
[SourceTitle "playchess.com"]
[Source "ChessBase"]
[SourceQuality "1"]
[TimeControl "40/5400+30:1800+30"]

1. e4 e6 2. d4 d5 3. Nc3 Nf6 4. e5 Nfd7 5. f4 c5 6. Nf3 Nc6 7. Be3 a6 8. Qd2 b5 9. Nd1 b4 10. Be2 Qb6 11. O-O cxd4 12. Nxd4 Nxd4 13. Bxd4 Qxd4+ 14. Qxd4 Bc5 15. Qf2 Bxf2+ 16. Nxf2 Bb7 17. Nd3 a5 18. a3 Rc8 19. Rfc1 Nc5 20. axb4 Nxd3 21. Bxd3 axb4 22. Ra4 b3 23. Rb4 Bc6 24. Rxb3 Ke7 25. Ra1 Rc7 26. Rc3 Rb8 27. Ra6 Kd7 28. b3 h6 29. Kf2 Rb4 30. g3 h5 31. Rc5 h4 32. Ke2 hxg3 33. hxg3 Rb8 34. Kd2 Rh8 35. Raxc6 Rxc6 36. Bb5 Rhc8 37. Kc3 R8c7 38. Kb4 Rc8 39. Rxc6 Rxc6 40. Ka5 f6 41. b4 fxe5 42. fxe5 d4 43. Bxc6+ Kxc6 44. b5+ Kb7 45. Kb4 Kb6 46. Kc4 g6 47. g4 g5 48. Kb4 Kb7 49. Kc5 Kc7 50. Kxd4 1-0

[Event "2nd Irena Warakomska Memorial-B"]
[Site "Suwalki"]
[Date "2018.08.02"]
[Round "2"]
[White "Hrymowicz, Artur"]
[Black "Paziak, Patryk"]
[Result "1-0"]
[ECO "B01"]
[WhiteElo "2038"]
[BlackElo "1823"]
[Annotator "NA RC"]
[PlyCount "77"]
[EventDate "2018.08.01"]
[EventType "swiss"]
[EventCountry "POL"]
[SourceTitle "playchess.com"]
[Source "ChessBase"]
[SourceQuality "1"]
[TimeControl "40/5400+30:1800+30"]

1. e4 d5 2. exd5 Qxd5 3. Nc3 Qa5 4. d4 Nf6 5. Nf3 Bf5 6. Bc4 e6 7. O-O c6 8. Qe2 Bd6 9. Nh4 Bg4 10. f3 Qh5 11. g3 Bh3 12. Ng2 Nbd7 13. Re1 O-O-O 14. Nf4 Bxf4 15. Bxf4 g5 16. Be5 Qg6 17. b4 Nxe5 18. dxe5 Nd5 19. Ne4 h5 20. a4 f5 21. exf6 Nxf6 22. Nf2 Bf5 23. Bxe6+ Bxe6 24. Qxe6+ Kb8 25. Ne4 Rhf8 26. b5 cxb5 27. axb5 Qg7 28. Qe5+ Qc7 29. Qxc7+ Kxc7 30. Nxg5 Kb6 31. Ne6 Kxb5 32. Nxf8 Rxf8 33. Rab1+ Kc6 34. Re7 Nd7 35. f4 a5 36. Re6+ Kc7 37. Rb5 a4 38. Rxh5 Nb6 39. Rc5+ 1-0

[Event "2nd Irena Warakomska Memorial-B"]
[Site "Suwalki"]
[Date "2018.08.02"]
[Round "2"]
[White "Koziej, Maciej"]
[Black "Milanowski, Jan"]
[Result "0-1"]
[ECO "B07"]
[WhiteElo "2027"]
[BlackElo "1774"]
[Annotator "NA RC"]
[PlyCount "72"]
[EventDate "2018.08.01"]
[EventType "swiss"]
[EventCountry "POL"]
[SourceTitle "playchess.com"]
[Source "ChessBase"]
[SourceQuality "1"]
[TimeControl "40/5400+30:1800+30"]

1. Nf3 Nf6 2. d4 d6 3. Nc3 c6 4. e4 Qa5 5. Bd2 Qc7 6. Bc4 Bg4 7. h3 Bxf3 8. Qxf3 e5 9. dxe5 dxe5 10. g4 h6 11. O-O-O b5 12. Bb3 a5 13. a4 b4 14. Ne2 Na6 15. Be3 Nc5 16. Bxc5 Bxc5 17. h4 Rd8 18. Qf5 Qe7 19. Rxd8+ Kxd8 20. g5 hxg5 21. Rd1+ Kc7 22. hxg5 Ne8 23. f4 Nd6 24. Qxe5 Qxe5 25. fxe5 Nxe4 26. Bxf7 Nxg5 27. Bg6 Rh2 28. Ng3 Be3+ 29. Kb1 Bf4 30. Nf5 Bxe5 31. Be8 Kb6 32. Rd7 b3 33. Ne3 bxc2+ 34. Nxc2 Nf3 35. Re7 Bf6 36. Re6 Rxc2 0-1

[Event "2nd Irena Warakomska Memorial-B"]
[Site "Suwalki"]
[Date "2018.08.02"]
[Round "2"]
[White "Rak, Tomasz"]
[Black "Szczotka, Klara"]
[Result "1-0"]
[ECO "D02"]
[WhiteElo "2007"]
[BlackElo "1483"]
[Annotator "NA RC"]
[PlyCount "127"]
[EventDate "2018.08.01"]
[EventType "swiss"]
[EventCountry "POL"]
[SourceTitle "playchess.com"]
[Source "ChessBase"]
[SourceQuality "1"]
[TimeControl "40/5400+30:1800+30"]

1. Nf3 Nf6 2. d4 d5 3. Bf4 g6 4. Nbd2 Bg7 5. h3 O-O 6. e3 b6 7. Bd3 Nbd7 8. O-O Bb7 9. Ne5 Nh5 10. Bh2 Nxe5 11. dxe5 Bh8 12. f4 Ng7 13. f5 Bc8 14. Qg4 c5 15. c3 gxf5 16. Bxf5 Bxf5 17. Rxf5 Qc8 18. Raf1 Qe6 19. e4 dxe4 20. Nxe4 h5 21. Qg5 Qg6 22. Qxg6 fxg6 23. Rxf8+ Rxf8 24. Rxf8+ Kxf8 25. Ng5 e6 26. g4 hxg4 27. hxg4 Ke7 28. Kf2 Ne8 29. c4 Nc7 30. Ne4 Na6 31. Nd6 Nb4 32. Ke3 Kd7 33. a3 Nc6 34. Ke4 Bg7 35. Bf4 a5 36. b3 Nd4 37. b4 axb4 38. axb4 Nb3 39. b5 Na5 40. Kd3 Nb3 41. Nf7 Ke7 42. Nd6 Kd7 43. Ne4 Nd4 44. Nf2 Ke7 45. Ke4 Ne2 46. Bg5+ Kf7 47. Bd8 Nc3+ 48. Kf4 Na4 49. Ne4 Ke8 50. Bf6 Bh6+ 51. Bg5 Bg7 52. Nd6+ Kd7 53. Ke4 Bf8 54. Nf7 Nb2 55. Nh8 Nxc4 56. Nxg6 Bg7 57. Bf6 Bxf6 58. exf6 Nd6+ 59. Kf4 Nf7 60. Ne5+ Ke8 61. Nc4 Kd7 62. g5 Nh8 63. Ne5+ Ke8 64. g6 1-0

[Event "2nd Irena Warakomska Memorial-B"]
[Site "Suwalki"]
[Date "2018.08.02"]
[Round "2"]
[White "Litner, Igor"]
[Black "Samborski, Henryk"]
[Result "1/2-1/2"]
[ECO "A46"]
[WhiteElo "1990"]
[BlackElo "2098"]
[Annotator "NA"]
[PlyCount "64"]
[EventDate "2018.08.01"]
[EventType "swiss"]
[EventCountry "POL"]
[SourceTitle "playchess.com"]
[Source "ChessBase"]
[SourceQuality "1"]
[TimeControl "40/5400+30:1800+30"]

1. d4 {[%emt 0:00:00]} Nf6 {[%emt 0:00:00]} 2. Nf3 {[%emt 0:00:00]} e6 {[%emt 0:00:00]} 3. g3 {[%emt 0:00:07]} b6 {[%emt 0:00:07]} 4. Bg2 {[%emt 0:00:09]} Bb7 {[%emt 0:00:03]} 5. O-O {[%emt 0:01:16]} Be7 {[%emt 0:00:46]} 6. b3 {[%emt 0:00:24]} O-O {[%emt 0:01:22]} 7. Bb2 {[%emt 0:00:10]} Ne4 {[%emt 0:09:02]} 8. Nfd2 {[%emt 0:09:26]} f5 {[%emt 0:00:45]} 9. Nxe4 {[%emt 0:00:11]} fxe4 {[%emt 0:00:12]} 10. e3 {[%emt 0:01:15]} Qe8 {[%emt 0:12:11]} 11. c4 {[%emt 0:08:34]} d5 {[%emt 0:15:54]} 12. Nc3 {[%emt 0:04:59]} Na6 {[%emt 0:05:48]} 13. a3 {[%emt 0:07:58]} Qg6 {[%emt 0:04:23]} 14. Rc1 {[%emt 0:02:51]} Rf7 {[%emt 0:04:34]} 15. b4 {[%emt 0:01:55]} c6 {[%emt 0:02:58]} 16. Qa4 {[%emt 0:06:51]} Nc7 {[%emt 0:03:41]} 17. Qb3 {[%emt 0:04:02]} h5 {[%emt 0:09:46]} 18. a4 {[%emt 0:04:18]} h4 {[%emt 0:00:33]} 19. Ba3 {[%emt 0:01:00]} hxg3 {[%emt 0:05:13]} 20. fxg3 {[%emt 0:07:07]} Raf8 {[%emt 0:00:38]} 21. Ne2 {[%emt 0:00:57]} Rxf1+ {[%emt 0:00:53]} 22. Rxf1 {[%emt 0:00:38]} Rxf1+ {[%emt 0:00:08]} 23. Bxf1 {[%emt 0:01:56]} Qf6 {[%emt 0:05:39]} 24. Bc1 {[%emt 0:09:12]} g5 {[%emt 0:02:50]} 25. a5 {[%emt 0:03:49]} Ba6 {[%emt 0:03:26]} 26. axb6 {[%emt 0:01:14]} axb6 {[%emt 0:00:23]} 27. c5 {[%emt 0:02:41]} Bc4 {[%emt 0:02:25]} 28. Qd1 {[%emt 0:02:16]} bxc5 {[%emt 0:00:43]} 29. bxc5 {[%emt 0:00:21]} Nb5 {[%emt 0:02:08]} 30. Bg2 {[%emt 0:02:00]} Bd8 {[%emt 0:00:30]} 31. Bd2 {[%emt 0:01:03]} Bc7 {[%emt 0:00:03]} 32. Nc3 {[%emt 0:00:47]} Kg7 {[%emt 0:02:12]} 1/2-1/2

[Event "2nd Irena Warakomska Memorial-B"]
[Site "Suwalki"]
[Date "2018.08.02"]
[Round "2"]
[White "Bien, Janusz"]
[Black "Binkis, Evgeniya"]
[Result "1-0"]
[ECO "C56"]
[WhiteElo "1976"]
[BlackElo "1723"]
[Annotator "NA RC"]
[PlyCount "111"]
[EventDate "2018.08.01"]
[EventType "swiss"]
[EventCountry "POL"]
[SourceTitle "playchess.com"]
[Source "ChessBase"]
[SourceQuality "1"]
[TimeControl "40/5400+30:1800+30"]

1. e4 e5 2. d4 exd4 3. Nf3 Nc6 4. Bc4 Nf6 5. e5 d5 6. Bb5 Ne4 7. Nxd4 Bd7 8. Bxc6 bxc6 9. O-O Bc5 10. f3 Ng5 11. Be3 O-O 12. f4 Ne4 13. Nd2 Nxd2 14. Qxd2 Re8 15. Nb3 Bb6 16. Qc3 Bf5 17. Rae1 Qd7 18. Bc5 h6 19. a4 Rad8 20. Nd4 Be4 21. Re3 a5 22. Rg3 Rb8 23. b3 h5 24. h3 Rbc8 25. Kh2 Kh7 26. Rg5 g6 27. h4 f5 28. exf6 Qf7 29. f5 Rg8 30. Nxc6 Bxc5 31. Qxc5 gxf5 32. Ne7 Qxf6 33. Nxg8 Qe5+ 34. Kg1 Rxg8 35. Rxh5+ Kg6 36. Rg5+ Kf7 37. Rxg8 Kxg8 38. Qe3 Qg7 39. Rf2 Qg4 40. Qh6 Qd1+ 41. Kh2 Qd4 42. Qg5+ Kh8 43. Qd8+ Kh7 44. Qxc7+ Kg6 45. Qf4 Qc5 46. Qg3+ Kf7 47. h5 Qc6 48. c3 Qh6 49. Qg6+ Qxg6 50. hxg6+ Kxg6 51. Kg3 Kg5 52. Rb2 f4+ 53. Kf2 Kf5 54. b4 axb4 55. Rxb4 Ke5 56. a5 1-0

[Event "2nd Irena Warakomska Memorial-B"]
[Site "Suwalki"]
[Date "2018.08.02"]
[Round "2"]
[White "Salah, Nadezhda"]
[Black "Matuszczyk, Mateusz"]
[Result "0-1"]
[ECO "D73"]
[WhiteElo "1963"]
[BlackElo "1733"]
[Annotator "NA RC"]
[PlyCount "62"]
[EventDate "2018.08.01"]
[EventType "swiss"]
[EventCountry "POL"]
[SourceTitle "playchess.com"]
[Source "ChessBase"]
[SourceQuality "1"]
[TimeControl "40/5400+30:1800+30"]

1. d4 Nf6 2. Nf3 g6 3. g3 Bg7 4. Bg2 d5 5. c4 c5 6. O-O cxd4 7. Nxd4 e5 8. Nb5 a6 9. N5c3 d4 10. Nd5 Nxd5 11. Bxd5 Nd7 12. e3 Nb6 13. e4 Nxd5 14. cxd5 Bh3 15. Re1 h5 16. Nd2 h4 17. Qb3 hxg3 18. fxg3 b5 19. Nf3 O-O 20. Bd2 Bd7 21. Rf1 a5 22. Rf2 Qc7 23. Raf1 Qc4 24. Qd1 f5 25. Nh4 fxe4 26. Rxf8+ Rxf8 27. Rxf8+ Bxf8 28. Nxg6 Bg7 29. Qh5 Qc5 30. Bg5 Be8 31. Ne7+ Qxe7 0-1

[Event "2nd Irena Warakomska Memorial-B"]
[Site "Suwalki"]
[Date "2018.08.02"]
[Round "2"]
[White "Kaminski, Maciej"]
[Black "Kindler, Przemyslaw"]
[Result "1/2-1/2"]
[ECO "B07"]
[WhiteElo "1955"]
[BlackElo "2086"]
[Annotator "NA RC"]
[PlyCount "104"]
[EventDate "2018.08.01"]
[EventType "swiss"]
[EventCountry "POL"]
[SourceTitle "playchess.com"]
[Source "ChessBase"]
[SourceQuality "1"]
[TimeControl "40/5400+30:1800+30"]

1. e4 {[%emt 0:00:00]} d6 {[%emt 0:00:00]} 2. d4 {[%emt 0:00:00]} Nf6 {[%emt 0:00:00]} 3. Nc3 {[%emt 0:00:00]} Nbd7 {[%emt 0:00:00]} 4. g4 {[%emt 0:01:00]} h6 {[%emt 0:01:42]} 5. h3 {[%emt 0:05:29]} e5 {[%emt 0:00:26]} 6. Nge2 {[%emt 0:00:23]} g6 {[%emt 0:00:52]} 7. Be3 {[%emt 0:02:47]} c6 {[%emt 0:00:04]} 8. Bg2 h5 {[%emt 0:22:09]} 9. g5 {[%emt 0:05:23]} Nh7 {[%emt 0:03:21]} 10. Qd2 {[%emt 0:02:34]} Be7 {[%emt 0:00:19]} 11. h4 {[%emt 0:00:44]} f6 {[%emt 0:07:44]} 12. f4 {[%emt 0:06:34]} exf4 {[%emt 0:00:23]} 13. Nxf4 {[%emt 0:01:19]} Ndf8 {[%emt 0:00:03]} 14. gxf6 {[%emt 0:12:34]} Nxf6 {[%emt 0:00:04]} 15. Bf2 {[%emt 0:03:49]} Ng4 {[%emt 0:00:33]} 16. d5 {[%emt 0:13:43]} c5 {[%emt 0:00:52]} 17. O-O-O {[%emt 0:00:37]} g5 {[%emt 0:00:30]} 18. hxg5 {[%emt 0:07:08]} Bxg5 {[%emt 0:03:31]} 19. Rdf1 {[%emt 0:05:16]} Ng6 {[%emt 0:03:24]} 20. Nce2 {[%emt 0:02:09]} Nxf4 {[%emt 0:02:48]} 21. Nxf4 {[%emt 0:00:09]} Rf8 {[%emt 0:00:01]} 22. Bg3 {[%emt 0:05:46]} h4 {[%emt 0:00:15]} 23. Bxh4 {[%emt 0:15:21]} Bxh4 {[%emt 0:00:04]} 24. Ng6 {[%emt 0:00:07]} Rxf1+ {[%emt 0:00:04]} 25. Rxf1 {[%emt 0:00:08]} Bf6 {[%emt 0:00:09]} 26. Kb1 Qc7 27. Nf4 {[%emt 0:03:45]} Qb6 {[%emt 0:27:37]} 28. c3 {[%emt 0:00:46]} Bd7 {[%emt 0:01:23]} 29. Ne6 {[%emt 0:02:10]} Bxe6 {[%emt 0:00:21]} 30. dxe6 {[%emt 0:00:08]} Be7 {[%emt 0:00:51]} 31. Rf7 {[%emt 0:01:55]} Qc7 32. Qg5 {[%emt 0:02:01]} Bxg5 {[%emt 0:01:55]} 33. Rxc7 {[%emt 0:00:09]} Be7 {[%emt 0:00:15]} 34. e5 {[%emt 0:01:41]} Nxe5 {[%emt 0:00:04]} 35. Bxb7 {[%emt 0:00:07]} Rb8 36. Ba6 {[%emt 0:00:09]} Kf8 {[%emt 0:01:31]} 37. Rxa7 {[%emt 0:00:20]} Nc6 {[%emt 0:00:07]} 38. Rc7 {[%emt 0:01:10]} Rb6 {[%emt 0:00:13]} 39. Bb7 {[%emt 0:00:26]} Ne5 {[%emt 0:00:18]} 40. Bd5 {[%emt 0:00:00]} Nd3 41. b3 {[%emt 0:09:39]} Nf4 {[%emt 0:00:29]} 42. c4 {[%emt 0:00:09]} Ne2 {[%emt 0:02:36]} 43. Kc2 {[%emt 0:01:16]} Nd4+ 44. Kc3 {[%emt 0:03:15]} Ra6 {[%emt 0:02:38]} 45. Rc8+ {[%emt 0:03:36]} Kg7 {[%emt 0:00:04]} 46. Kb2 {[%emt 0:05:18]} Rb6 47. Kc3 {[%emt 0:01:57]} Kf6 {[%emt 0:03:44]} 48. Rh8 {[%emt 0:00:19]} Kg6 {[%emt 0:00:30]} 49. Re8 {[%emt 0:02:17]} Kf6 {[%emt 0:00:25]} 50. Rh8 {[%emt 0:00:23]} Kg7 {[%emt 0:01:17]} 51. Re8 {[%emt 0:01:47]} Kf6 {[%emt 0:10:47]} 52. Rh8 Ke5 1/2-1/2